[Event "Late-Titled-Tuesday-Blitz-March-12-2024"]
[Site "Chess.com"]
[Date "2024.03.12"]
[Round "7"]
[White "Jagerrmeisterr"]
[Black "Sina_Movahed"]
[Result "0-1"]
[WhiteElo "2721"]
[BlackElo "3031"]
[TimeControl "180+1"]
[EndTime "15:17:16 PDT"]
[Termination "Sina_Movahed won on time"]

1. e4 {[%clk 0:03:00.9]} 1... c5 {[%clk 0:02:59.7]} 2. Nc3 {[%clk 0:03:01]} 2...
d6 {[%clk 0:03:00.2]} 3. f4 {[%clk 0:03:01.4]} 3... g6 {[%clk 0:03:00.5]} 4. Nf3
{[%clk 0:03:02]} 4... Bg7 {[%clk 0:03:01.2]} 5. Bc4 {[%clk 0:03:02.4]} 5... e6
{[%clk 0:03:01.2]} 6. a3 {[%clk 0:03:02.2]} 6... Ne7 {[%clk 0:03:01.9]} 7. Ba2
{[%clk 0:03:01.9]} 7... O-O {[%clk 0:03:02.5]} 8. O-O {[%clk 0:03:02.4]} 8...
Nbc6 {[%clk 0:03:03]} 9. d3 {[%clk 0:03:02.9]} 9... d5 {[%clk 0:03:00.7]} 10.
Qe1 {[%clk 0:03:00.2]} 10... Nd4 {[%clk 0:03:00.9]} 11. Nxd4 {[%clk 0:03:00.2]}
11... cxd4 {[%clk 0:03:00.8]} 12. Ne2 {[%clk 0:03:00.5]} 12... dxe4 {[%clk
0:03:01.2]} 13. dxe4 {[%clk 0:03:01]} 13... b6 {[%clk 0:02:57.5]} 14. Bd2 {[%clk
0:02:56.4]} 14... Ba6 {[%clk 0:02:55.7]} 15. Rf3 {[%clk 0:02:54.5]} 15... Rc8
{[%clk 0:02:54.2]} 16. Bb3 {[%clk 0:02:55]} 16... d3 {[%clk 0:02:49.6]} 17. cxd3
{[%clk 0:02:37]} 17... Bxb2 {[%clk 0:02:38.1]} 18. Ra2 {[%clk 0:02:36.1]} 18...
Bg7 {[%clk 0:02:36.3]} 19. Bb4 {[%clk 0:02:31.8]} 19... Re8 {[%clk 0:02:35.9]}
20. e5 {[%clk 0:02:22.1]} 20... Bb7 {[%clk 0:02:34.6]} 21. Rh3 {[%clk
0:02:21.1]} 21... Nd5 {[%clk 0:02:33.2]} 22. Bd6 {[%clk 0:02:14.1]} 22... Bf8
{[%clk 0:02:26.9]} 23. Bxf8 {[%clk 0:02:12.7]} 23... Rxf8 {[%clk 0:02:27.8]} 24.
Rd2 {[%clk 0:02:06.3]} 24... b5 {[%clk 0:02:24]} 25. Rd1 {[%clk 0:01:42]} 25...
a5 {[%clk 0:02:23.7]} 26. Qf2 {[%clk 0:01:20.4]} 26... a4 {[%clk 0:02:16.2]} 27.
Bxd5 {[%clk 0:01:19.6]} 27... Qxd5 {[%clk 0:02:16.3]} 28. Nd4 {[%clk 0:01:20.1]}
28... b4 {[%clk 0:02:08.7]} 29. Nf3 {[%clk 0:01:17.7]} 29... b3 {[%clk 0:02:04]}
30. Qh4 {[%clk 0:01:02.6]} 30... h5 {[%clk 0:02:03.6]} 31. g4 {[%clk 0:00:52]}
31... b2 {[%clk 0:01:59.8]} 32. gxh5 {[%clk 0:00:50.5]} 32... Rc1 {[%clk
0:00:34.9]} 33. hxg6 {[%clk 0:00:50.2]} 33... Rxd1+ {[%clk 0:00:35.2]} 34. Kf2
{[%clk 0:00:50.7]} 34... Qc5+ {[%clk 0:00:35.1]} 35. Nd4 {[%clk 0:00:12.9]}
35... Qxd4+ {[%clk 0:00:23.8]} 36. Ke2 {[%clk 0:00:13.4]} 36... Re1+ {[%clk
0:00:21.7]} 37. Kd2 {[%clk 0:00:11.4]} 37... Rd1+ {[%clk 0:00:19.5]} 38. Ke2
{[%clk 0:00:11.1]} 38... Bf3+ {[%clk 0:00:16.2]} 39. Rxf3 {[%clk 0:00:05.1]}
39... fxg6 {[%clk 0:00:16.6]} 40. Rh3 {[%clk 0:00:05.3]} 40... Re1+ {[%clk
0:00:05.2]} 41. Kd2 {[%clk 0:00:04.2]} 41... Qxf4+ {[%clk 0:00:05.7]} 42. Qxf4
{[%clk 0:00:01.8]} 42... Rxf4 {[%clk 0:00:06.6]} 43. Kxe1 {[%clk 0:00:01.8]}
43... b1=Q+ {[%clk 0:00:06.6]} 0-1

[Event "Late-Titled-Tuesday-Blitz-March-12-2024"]
[Site "Chess.com"]
[Date "2024.03.12"]
[Round "7"]
[White "jstopa4"]
[Black "Lady_Nika"]
[Result "1/2-1/2"]
[WhiteElo "2748"]
[BlackElo "2584"]
[TimeControl "180+1"]
[EndTime "15:17:17 PDT"]
[Termination "Game drawn by stalemate"]

1. d4 {[%clk 0:02:59]} 1... d5 {[%clk 0:03:00]} 2. c4 {[%clk 0:02:58.1]} 2... e6
{[%clk 0:03:00.3]} 3. Nf3 {[%clk 0:02:58]} 3... f5 {[%clk 0:03:00.6]} 4. g3
{[%clk 0:02:52.1]} 4... Nf6 {[%clk 0:03:00.8]} 5. Bg2 {[%clk 0:02:52.4]} 5... c6
{[%clk 0:03:00.9]} 6. O-O {[%clk 0:02:51.8]} 6... Bd6 {[%clk 0:03:01.1]} 7. b3
{[%clk 0:02:51.8]} 7... O-O {[%clk 0:03:01.2]} 8. Ba3 {[%clk 0:02:52]} 8... Bxa3
{[%clk 0:03:01.3]} 9. Nxa3 {[%clk 0:02:52.2]} 9... Qd6 {[%clk 0:03:01.9]} 10.
Nc2 {[%clk 0:02:47.8]} 10... Nbd7 {[%clk 0:03:01.7]} 11. Nce1 {[%clk 0:02:47.9]}
11... Ne4 {[%clk 0:03:01.8]} 12. Nd3 {[%clk 0:02:48.2]} 12... b6 {[%clk
0:03:02.2]} 13. Qc2 {[%clk 0:02:39.9]} 13... a5 {[%clk 0:03:01.9]} 14. a4 {[%clk
0:02:36.3]} 14... Ba6 {[%clk 0:03:01.9]} 15. Rfc1 {[%clk 0:02:35.4]} 15... Rfc8
{[%clk 0:03:01.3]} 16. Qb2 {[%clk 0:02:31.3]} 16... Rc7 {[%clk 0:02:56.7]} 17.
e3 {[%clk 0:02:30.2]} 17... Rac8 {[%clk 0:02:56.3]} 18. h4 {[%clk 0:02:28.9]}
18... c5 {[%clk 0:02:56.3]} 19. Nde5 {[%clk 0:02:15.7]} 19... cxd4 {[%clk
0:02:55.6]} 20. Qxd4 {[%clk 0:01:56.3]} 20... Nxe5 {[%clk 0:02:47]} 21. Nxe5
{[%clk 0:01:51.2]} 21... dxc4 {[%clk 0:02:46.8]} 22. Bxe4 {[%clk 0:01:32.1]}
22... Qxd4 {[%clk 0:02:45.7]} 23. exd4 {[%clk 0:01:32.5]} 23... fxe4 {[%clk
0:02:45.8]} 24. bxc4 {[%clk 0:01:29.8]} 24... Bxc4 {[%clk 0:02:45.9]} 25. Rab1
{[%clk 0:01:27.1]} 25... Bd5 {[%clk 0:02:45.7]} 26. Rxc7 {[%clk 0:01:25.3]}
26... Rxc7 {[%clk 0:02:45.8]} 27. Kf1 {[%clk 0:01:11.2]} 27... Rb7 {[%clk
0:02:41.6]} 28. Ke2 {[%clk 0:01:10.3]} 28... g6 {[%clk 0:02:37.7]} 29. g4 {[%clk
0:01:08.8]} 29... Kf8 {[%clk 0:02:33.7]} 30. g5 {[%clk 0:01:08.8]} 30... Ke8
{[%clk 0:02:33.8]} 31. Ng4 {[%clk 0:01:05.7]} 31... Kd8 {[%clk 0:02:29.4]} 32.
Nf6 {[%clk 0:01:01.7]} 32... Kc8 {[%clk 0:02:29.6]} 33. Nxd5 {[%clk 0:00:58.5]}
33... exd5 {[%clk 0:02:29.6]} 34. Rb5 {[%clk 0:00:59.4]} 34... Rc7 {[%clk
0:02:24]} 35. Rxb6 {[%clk 0:00:57.4]} 35... Rc4 {[%clk 0:02:24]} 36. Rb5 {[%clk
0:00:57.8]} 36... Rxd4 {[%clk 0:02:22.3]} 37. Rxa5 {[%clk 0:00:58.1]} 37... Kb7
{[%clk 0:02:21]} 38. Rb5+ {[%clk 0:00:46.9]} 38... Kc6 {[%clk 0:02:20.6]} 39.
Ra5 {[%clk 0:00:45.4]} 39... Rb4 {[%clk 0:02:19.2]} 40. Ra6+ {[%clk 0:00:43.6]}
40... Kc5 {[%clk 0:02:15.9]} 41. Ra7 {[%clk 0:00:41]} 41... d4 {[%clk
0:02:14.1]} 42. Rxh7 {[%clk 0:00:37.8]} 42... Rxa4 {[%clk 0:02:13.1]} 43. h5
{[%clk 0:00:35.3]} 43... gxh5 {[%clk 0:02:12.6]} 44. g6 {[%clk 0:00:35.7]} 44...
Ra2+ {[%clk 0:02:06.9]} 45. Ke1 {[%clk 0:00:35.5]} 45... Ra1+ {[%clk 0:02:07]}
46. Kd2 {[%clk 0:00:35.5]} 46... Ra2+ {[%clk 0:02:06.8]} 47. Ke1 {[%clk
0:00:35.9]} 47... Ra1+ {[%clk 0:01:37.7]} 48. Kd2 {[%clk 0:00:35.7]} 48... Rg1
{[%clk 0:01:35.8]} 49. Rxh5+ {[%clk 0:00:23.9]} 49... Kc4 {[%clk 0:01:35.8]} 50.
Rh8 {[%clk 0:00:22.9]} 50... Rxg6 {[%clk 0:01:34]} 51. Rc8+ {[%clk 0:00:23.1]}
51... Kd5 {[%clk 0:01:34.1]} 52. Rd8+ {[%clk 0:00:23.6]} 52... Ke5 {[%clk
0:01:34.3]} 53. Re8+ {[%clk 0:00:23.6]} 53... Kf5 {[%clk 0:01:34.6]} 54. Rd8
{[%clk 0:00:24]} 54... Ke5 {[%clk 0:01:31.8]} 55. Re8+ {[%clk 0:00:24]} 55...
Re6 {[%clk 0:01:32]} 56. Ra8 {[%clk 0:00:23.6]} 56... Rf6 {[%clk 0:01:29.2]} 57.
Re8+ {[%clk 0:00:22.6]} 57... Kf4 {[%clk 0:01:29]} 58. Rd8 {[%clk 0:00:20.6]}
58... d3 {[%clk 0:01:28.2]} 59. Re8 {[%clk 0:00:18.8]} 59... Kf3 {[%clk
0:01:27.8]} 60. Ke1 {[%clk 0:00:19.3]} 60... Rf4 {[%clk 0:01:23.8]} 61. Re7
{[%clk 0:00:19]} 61... Rh4 {[%clk 0:01:23.6]} 62. Rf7+ {[%clk 0:00:19]} 62...
Kg2 {[%clk 0:01:23.7]} 63. Rg7+ {[%clk 0:00:18.6]} 63... Kf3 {[%clk 0:01:22.3]}
64. Rf7+ {[%clk 0:00:19.1]} 64... Rf4 {[%clk 0:01:22.3]} 65. Re7 {[%clk
0:00:19]} 65... d2+ {[%clk 0:01:20.8]} 66. Kxd2 {[%clk 0:00:18.9]} 66... Kxf2
{[%clk 0:01:21]} 67. Re8 {[%clk 0:00:17.7]} 67... Kf3 {[%clk 0:01:16.2]} 68. Re7
{[%clk 0:00:16.8]} 68... Rh4 {[%clk 0:01:15.9]} 69. Rf7+ {[%clk 0:00:16.2]}
69... Rf4 {[%clk 0:01:14.1]} 70. Rxf4+ {[%clk 0:00:16.5]} 70... Kxf4 {[%clk
0:01:14]} 71. Ke2 {[%clk 0:00:17.4]} 71... e3 {[%clk 0:01:14.4]} 72. Ke1 {[%clk
0:00:18]} 72... Kf5 {[%clk 0:01:12.9]} 73. Ke2 {[%clk 0:00:18.2]} 73... Ke4
{[%clk 0:01:13.2]} 74. Ke1 {[%clk 0:00:18.8]} 74... Kf4 {[%clk 0:01:11.5]} 75.
Ke2 {[%clk 0:00:19]} 75... Ke4 {[%clk 0:01:11.8]} 76. Ke1 {[%clk 0:00:19.6]}
76... Kd5 {[%clk 0:01:12.1]} 77. Ke2 {[%clk 0:00:19.8]} 77... Kd4 {[%clk
0:01:12.6]} 78. Ke1 {[%clk 0:00:20]} 78... Ke4 {[%clk 0:01:12.5]} 79. Ke2 {[%clk
0:00:20.4]} 79... Kf4 {[%clk 0:01:12.8]} 80. Ke1 {[%clk 0:00:20.7]} 80... Kf3
{[%clk 0:01:13.7]} 81. Kf1 {[%clk 0:00:21.1]} 81... e2+ {[%clk 0:01:14.2]} 82.
Ke1 {[%clk 0:00:21.5]} 82... Ke3 {[%clk 0:01:15.1]} 1/2-1/2

[Event "Late-Titled-Tuesday-Blitz-March-12-2024"]
[Site "Chess.com"]
[Date "2024.03.12"]
[Round "7"]
[White "Jarming"]
[Black "Marcan2b"]
[Result "0-1"]
[WhiteElo "2666"]
[BlackElo "2935"]
[TimeControl "180+1"]
[EndTime "15:17:19 PDT"]
[Termination "Marcan2b won by resignation"]

1. d4 {[%clk 0:03:00.9]} 1... Nf6 {[%clk 0:02:59.1]} 2. c4 {[%clk 0:02:57.9]}
2... g6 {[%clk 0:02:58.3]} 3. Nc3 {[%clk 0:02:57]} 3... Bg7 {[%clk 0:02:58.9]}
4. g3 {[%clk 0:02:51.7]} 4... d6 {[%clk 0:02:55.7]} 5. Bg2 {[%clk 0:02:52]} 5...
O-O {[%clk 0:02:56.4]} 6. e3 {[%clk 0:02:52.1]} 6... Nc6 {[%clk 0:02:56]} 7.
Nge2 {[%clk 0:02:52.4]} 7... e5 {[%clk 0:02:54.7]} 8. h3 {[%clk 0:02:52.4]} 8...
Re8 {[%clk 0:02:49.5]} 9. O-O {[%clk 0:02:51.9]} 9... h5 {[%clk 0:02:47.7]} 10.
b3 {[%clk 0:02:48.9]} 10... Bf5 {[%clk 0:02:45.6]} 11. Bb2 {[%clk 0:02:46.6]}
11... a6 {[%clk 0:02:43.8]} 12. Nd5 {[%clk 0:02:43.9]} 12... Nxd5 {[%clk
0:02:42.9]} 13. cxd5 {[%clk 0:02:43.8]} 13... Ne7 {[%clk 0:02:40.9]} 14. e4
{[%clk 0:02:43]} 14... Bd7 {[%clk 0:02:40.4]} 15. dxe5 {[%clk 0:02:43.3]} 15...
dxe5 {[%clk 0:02:40.2]} 16. Rc1 {[%clk 0:02:42.6]} 16... c6 {[%clk 0:02:39]} 17.
Nc3 {[%clk 0:02:39.4]} 17... cxd5 {[%clk 0:02:37.1]} 18. Nxd5 {[%clk 0:02:28.2]}
18... Nxd5 {[%clk 0:02:36.8]} 19. exd5 {[%clk 0:02:23.9]} 19... h4 {[%clk
0:02:32.6]} 20. g4 {[%clk 0:02:22.8]} 20... Bh6 {[%clk 0:02:31.4]} 21. Rc4
{[%clk 0:02:19.3]} 21... Bb5 {[%clk 0:02:30.5]} 22. Re1 {[%clk 0:02:16.5]} 22...
Bxc4 {[%clk 0:02:30.1]} 23. bxc4 {[%clk 0:02:17.4]} 23... Bf4 {[%clk 0:02:27]}
24. c5 {[%clk 0:02:17.4]} 24... Rc8 {[%clk 0:02:24.4]} 25. c6 {[%clk 0:02:16.5]}
25... bxc6 {[%clk 0:02:24.3]} 26. dxc6 {[%clk 0:02:17.4]} 26... Qb6 {[%clk
0:02:18.1]} 27. Qc2 {[%clk 0:02:11.2]} 27... Re6 {[%clk 0:02:09.2]} 28. Bd5
{[%clk 0:02:08.4]} 28... Rexc6 {[%clk 0:02:05.6]} 29. Bxc6 {[%clk 0:02:06.2]}
29... Rxc6 {[%clk 0:02:06.5]} 30. Qe2 {[%clk 0:02:00.4]} 30... Rf6 {[%clk
0:01:17.1]} 31. Rd1 {[%clk 0:01:46.5]} 31... Rd6 {[%clk 0:01:11.7]} 32. Bc3
{[%clk 0:01:31.7]} 32... Rxd1+ {[%clk 0:01:08.5]} 33. Qxd1 {[%clk 0:01:32.6]}
33... Qc6 {[%clk 0:01:05]} 34. Qd3 {[%clk 0:01:22.5]} 34... Qb5 {[%clk
0:00:50.4]} 35. Qe4 {[%clk 0:01:15.1]} 35... Qc5 {[%clk 0:00:42.7]} 36. Bb4
{[%clk 0:01:06.8]} 36... Qc8 {[%clk 0:00:35.8]} 37. Be7 {[%clk 0:01:03.8]} 37...
Qe6 {[%clk 0:00:31.6]} 38. Qa8+ {[%clk 0:00:58.4]} 38... Kh7 {[%clk 0:00:30.9]}
39. Qf8 {[%clk 0:00:58.8]} 39... Bh6 {[%clk 0:00:28.7]} 40. Qd8 {[%clk
0:00:53.7]} 40... Qxa2 {[%clk 0:00:25.7]} 41. Bxh4 {[%clk 0:00:53.8]} 41... Bg7
{[%clk 0:00:20.5]} 42. Be7 {[%clk 0:00:49.1]} 42... Qe6 {[%clk 0:00:20.3]} 43.
Qc7 {[%clk 0:00:47.2]} 43... e4 {[%clk 0:00:20.2]} 44. Bc5 {[%clk 0:00:43.9]}
44... Qc4 {[%clk 0:00:18.9]} 45. Qa7 {[%clk 0:00:42.8]} 45... Qc1+ {[%clk
0:00:16.8]} 46. Kg2 {[%clk 0:00:43.2]} 46... Qc4 {[%clk 0:00:17.3]} 47. Be3
{[%clk 0:00:40.7]} 47... Bc3 {[%clk 0:00:16.3]} 48. h4 {[%clk 0:00:39]} 48... a5
{[%clk 0:00:16.2]} 49. h5 {[%clk 0:00:35.8]} 49... gxh5 {[%clk 0:00:17.1]} 50.
gxh5 {[%clk 0:00:36.6]} 50... Qd5 {[%clk 0:00:16.8]} 51. Kf1 {[%clk 0:00:36.2]}
51... Qxh5 {[%clk 0:00:15.3]} 52. Qc7 {[%clk 0:00:34]} 52... Bg7 {[%clk
0:00:13.8]} 53. Ke1 {[%clk 0:00:31.2]} 53... a4 {[%clk 0:00:12.8]} 54. Qa7
{[%clk 0:00:28.7]} 54... Qh1+ {[%clk 0:00:11.7]} 55. Kd2 {[%clk 0:00:28.5]}
55... Qa1 {[%clk 0:00:06.6]} 56. Qd7 {[%clk 0:00:28.7]} 56... Qc3+ {[%clk
0:00:06.5]} 57. Ke2 {[%clk 0:00:29]} 57... Qd3+ {[%clk 0:00:06.2]} 58. Qxd3
{[%clk 0:00:29]} 58... exd3+ {[%clk 0:00:07.1]} 59. Kxd3 {[%clk 0:00:29.8]}
59... a3 {[%clk 0:00:08]} 0-1

[Event "Late-Titled-Tuesday-Blitz-March-12-2024"]
[Site "Chess.com"]
[Date "2024.03.12"]
[Round "7"]
[White "Rutricks"]
[Black "kleber2007"]
[Result "0-1"]
[WhiteElo "2698"]
[BlackElo "2549"]
[TimeControl "180+1"]
[EndTime "15:17:19 PDT"]
[Termination "kleber2007 won on time"]

1. Nc3 {[%clk 0:02:55.7]} 1... Nf6 {[%clk 0:02:58.2]} 2. e4 {[%clk 0:02:55.4]}
2... e5 {[%clk 0:02:58]} 3. f4 {[%clk 0:02:55.8]} 3... d5 {[%clk 0:02:56.7]} 4.
Qf3 {[%clk 0:02:52.6]} 4... Bg4 {[%clk 0:02:30]} 5. Qg3 {[%clk 0:02:52.9]} 5...
exf4 {[%clk 0:02:29.9]} 6. Qxf4 {[%clk 0:02:52.8]} 6... Nbd7 {[%clk 0:01:57]} 7.
exd5 {[%clk 0:02:34.5]} 7... Bd6 {[%clk 0:01:48.8]} 8. Qe3+ {[%clk 0:02:34.5]}
8... Kf8 {[%clk 0:01:48.6]} 9. d4 {[%clk 0:02:32.1]} 9... Nb6 {[%clk 0:01:47]}
10. Bd2 {[%clk 0:02:16.5]} 10... Nbxd5 {[%clk 0:01:40.6]} 11. Nxd5 {[%clk
0:02:04.4]} 11... Nxd5 {[%clk 0:01:41.5]} 12. Qb3 {[%clk 0:02:01.5]} 12... Qh4+
{[%clk 0:01:38.7]} 13. g3 {[%clk 0:01:59.8]} 13... Re8+ {[%clk 0:01:37.9]} 14.
Be2 {[%clk 0:01:49.6]} 14... Qh5 {[%clk 0:01:37.3]} 15. Qd3 {[%clk 0:01:20.2]}
15... Bxg3+ {[%clk 0:01:31.6]} 16. hxg3 {[%clk 0:01:04.2]} 16... Qxh1 {[%clk
0:01:30.6]} 17. O-O-O {[%clk 0:01:04.6]} 17... Bxe2 {[%clk 0:01:20.3]} 18. Nxe2
{[%clk 0:01:05.5]} 18... Qe4 {[%clk 0:01:20.1]} 19. Qa3+ {[%clk 0:01:06.1]}
19... Qe7 {[%clk 0:01:18.1]} 20. Qb3 {[%clk 0:01:06.2]} 20... c6 {[%clk
0:01:05.4]} 21. Nf4 {[%clk 0:01:05]} 21... Qd7 {[%clk 0:01:02.4]} 22. Nd3 {[%clk
0:00:59.6]} 22... h5 {[%clk 0:00:50.5]} 23. Ne5 {[%clk 0:00:58.9]} 23... Qc7
{[%clk 0:00:47.1]} 24. Rf1 {[%clk 0:00:52]} 24... Nf6 {[%clk 0:00:40]} 25. Bg5
{[%clk 0:00:16.7]} 25... Rxe5 {[%clk 0:00:35.1]} 26. Bf4 {[%clk 0:00:17.1]}
26... Qd7 {[%clk 0:00:21.1]} 27. Bxe5 {[%clk 0:00:16.7]} 27... Nd5 {[%clk
0:00:21.1]} 28. c4 {[%clk 0:00:16.1]} 28... Nb6 {[%clk 0:00:19.7]} 29. a4 {[%clk
0:00:16.4]} 29... f6 {[%clk 0:00:19.6]} 30. a5 {[%clk 0:00:16.6]} 30... Nc8
{[%clk 0:00:19.5]} 31. a6 {[%clk 0:00:15.2]} 31... bxa6 {[%clk 0:00:18.9]} 32.
c5 {[%clk 0:00:13]} 32... Qf7 {[%clk 0:00:17.5]} 33. Qb8 {[%clk 0:00:12.5]}
33... Qe8 {[%clk 0:00:16.3]} 34. Qc7 {[%clk 0:00:09.3]} 34... Ne7 {[%clk
0:00:16.1]} 35. Bxf6 {[%clk 0:00:08.9]} 35... gxf6 {[%clk 0:00:15.8]} 36. Rxf6+
{[%clk 0:00:09.8]} 36... Kg7 {[%clk 0:00:16.3]} 37. Qe5 {[%clk 0:00:10.4]} 37...
Ng6 {[%clk 0:00:16]} 38. Qg5 {[%clk 0:00:07.9]} 38... Rf8 {[%clk 0:00:15.9]} 39.
Rxf8 {[%clk 0:00:03.1]} 39... Qxf8 {[%clk 0:00:15.9]} 40. Qxh5 {[%clk
0:00:02.4]} 40... Qf1+ {[%clk 0:00:15.5]} 41. Kc2 {[%clk 0:00:03.1]} 41... Qf2+
{[%clk 0:00:15.7]} 42. Kc3 {[%clk 0:00:03.5]} 42... Qxg3+ {[%clk 0:00:15.9]} 43.
Kc4 {[%clk 0:00:04]} 43... Qd3+ {[%clk 0:00:14.6]} 44. Kxd3 {[%clk 0:00:03]}
44... Nf4+ {[%clk 0:00:14.5]} 45. Kc3 {[%clk 0:00:01.3]} 45... Nxh5 {[%clk
0:00:15.4]} 46. d5 {[%clk 0:00:02.1]} 46... Kf7 {[%clk 0:00:07.9]} 47. dxc6
{[%clk 0:00:01.7]} 47... Ke7 {[%clk 0:00:08.3]} 48. Kd4 {[%clk 0:00:01.8]} 48...
Kd8 {[%clk 0:00:08.7]} 49. Ke5 {[%clk 0:00:01.6]} 49... Kc7 {[%clk 0:00:09.3]}
0-1

[Event "Late-Titled-Tuesday-Blitz-March-12-2024"]
[Site "Chess.com"]
[Date "2024.03.12"]
[Round "7"]
[White "yobdc"]
[Black "David_ATM"]
[Result "1-0"]
[WhiteElo "2575"]
[BlackElo "2390"]
[TimeControl "180+1"]
[EndTime "15:17:19 PDT"]
[Termination "yobdc won by resignation"]

1. e4 {[%clk 0:03:00.9]} 1... e5 {[%clk 0:02:59.9]} 2. Nf3 {[%clk 0:03:00.5]}
2... Nc6 {[%clk 0:03:00.5]} 3. Bc4 {[%clk 0:03:01]} 3... Bc5 {[%clk 0:02:59.9]}
4. c3 {[%clk 0:03:01.1]} 4... Nf6 {[%clk 0:02:59.6]} 5. d4 {[%clk 0:03:01.5]}
5... exd4 {[%clk 0:03:00.5]} 6. e5 {[%clk 0:03:01.9]} 6... d5 {[%clk 0:03:00.7]}
7. Bb5 {[%clk 0:03:02.3]} 7... Ne4 {[%clk 0:02:56.3]} 8. cxd4 {[%clk 0:03:02.6]}
8... Bb6 {[%clk 0:02:56.9]} 9. Nc3 {[%clk 0:03:02.4]} 9... O-O {[%clk
0:02:44.1]} 10. Be3 {[%clk 0:03:01.9]} 10... Bg4 {[%clk 0:02:39.4]} 11. Qc2
{[%clk 0:03:01.8]} 11... Bxf3 {[%clk 0:02:19]} 12. gxf3 {[%clk 0:03:01.5]} 12...
Ng5 {[%clk 0:02:19.5]} 13. Bxc6 {[%clk 0:02:24.1]} 13... bxc6 {[%clk 0:02:17.6]}
14. Qe2 {[%clk 0:01:47.1]} 14... Ne6 {[%clk 0:02:04.4]} 15. O-O-O {[%clk
0:01:45.5]} 15... Qh4 {[%clk 0:02:05]} 16. Qd3 {[%clk 0:01:17.9]} 16... f6
{[%clk 0:02:03.6]} 17. Rhg1 {[%clk 0:00:50.1]} 17... fxe5 {[%clk 0:01:49.6]} 18.
dxe5 {[%clk 0:00:42.8]} 18... d4 {[%clk 0:01:27.3]} 19. Qc4 {[%clk 0:00:37.1]}
19... Qe7 {[%clk 0:01:16.4]} 20. Bxd4 {[%clk 0:00:34.8]} 20... Rxf3 {[%clk
0:00:44.5]} 21. Rg3 {[%clk 0:00:33.8]} 21... Rf4 {[%clk 0:00:42.8]} 22. Ne2
{[%clk 0:00:30.2]} 22... Re4 {[%clk 0:00:31.5]} 23. Qxc6 {[%clk 0:00:21.5]}
23... Rxe2 {[%clk 0:00:05.4]} 24. Qxa8+ {[%clk 0:00:21.1]} 24... Qf8 {[%clk
0:00:06.3]} 25. Qxf8+ {[%clk 0:00:19.9]} 25... Kxf8 {[%clk 0:00:07.2]} 26. Bxb6
{[%clk 0:00:19.4]} 26... axb6 {[%clk 0:00:08.1]} 27. Rd2 {[%clk 0:00:19.2]}
27... Re1+ {[%clk 0:00:07.5]} 28. Kc2 {[%clk 0:00:18.3]} 28... Rxe5 {[%clk
0:00:08.2]} 29. Re3 {[%clk 0:00:18]} 29... Rc5+ {[%clk 0:00:07.7]} 30. Kb1
{[%clk 0:00:18.2]} 30... Kf7 {[%clk 0:00:05.3]} 31. b4 {[%clk 0:00:16.1]} 31...
Rc6 {[%clk 0:00:05.2]} 32. Kb2 {[%clk 0:00:15.8]} 32... h6 {[%clk 0:00:04.2]}
33. a4 {[%clk 0:00:15.9]} 33... Ng5 {[%clk 0:00:04.3]} 34. Rc2 {[%clk
0:00:15.7]} 34... Rf6 {[%clk 0:00:03.6]} 35. Rxc7+ {[%clk 0:00:15.2]} 35... Kg6
{[%clk 0:00:04.3]} 36. Re2 {[%clk 0:00:15]} 36... Nf3 {[%clk 0:00:04.1]} 37. b5
{[%clk 0:00:12.5]} 37... Nxh2 {[%clk 0:00:03]} 38. Rc6 {[%clk 0:00:12.9]} 38...
Ng4 {[%clk 0:00:02.3]} 39. Ree6 {[%clk 0:00:11.4]} 39... Nxf2 {[%clk 0:00:02]}
40. Rxf6+ {[%clk 0:00:11.3]} 40... gxf6 {[%clk 0:00:02.9]} 41. a5 {[%clk
0:00:10.4]} 41... h5 {[%clk 0:00:01.8]} 42. a6 {[%clk 0:00:10]} 42... h4 {[%clk
0:00:02.7]} 43. a7 {[%clk 0:00:10.3]} 43... h3 {[%clk 0:00:03.6]} 44. a8=Q
{[%clk 0:00:10.3]} 44... h2 {[%clk 0:00:04.1]} 45. Rc2 {[%clk 0:00:10]} 45...
h1=Q {[%clk 0:00:04.1]} 46. Qg8+ {[%clk 0:00:09.3]} 46... Kf5 {[%clk 0:00:03.6]}
47. Rxf2+ {[%clk 0:00:08.6]} 47... Ke4 {[%clk 0:00:04.1]} 48. Qa8+ {[%clk
0:00:08.2]} 48... Ke3 {[%clk 0:00:04.4]} 49. Qxh1 {[%clk 0:00:08.6]} 49... Kxf2
{[%clk 0:00:04.4]} 50. Qc6 {[%clk 0:00:09.3]} 50... f5 {[%clk 0:00:04.2]} 51.
Qf6 {[%clk 0:00:09.8]} 51... f4 {[%clk 0:00:05.1]} 52. Qxf4+ {[%clk 0:00:10]}
52... Ke2 {[%clk 0:00:05.7]} 53. Qd6 {[%clk 0:00:10.6]} 53... Ke1 {[%clk
0:00:06.1]} 54. Qxb6 {[%clk 0:00:11.2]} 1-0